[Event "*** Titled Tuesday Blitz"]
[Site "Chess.com"]
[Date "2020.05.12"]
[Round "2"]
[White "temus_galaktionov"]
[Black "Aikiigm"]
[Result "1-0"]
[WhiteElo "2758"]
[BlackElo "2505"]
[TimeControl "180+1"]
[EndTime "10:17:54 PDT"]
[Termination "temus_galaktionov won on time"]

1. d4 {[%clk 0:03:00.9]} 1... Nf6 {[%clk 0:03:00.9]} 2. Nf3 {[%clk 0:02:59.4]}
2... d5 {[%clk 0:03:00.7]} 3. c4 {[%clk 0:02:59.2]} 3... c6 {[%clk 0:03:00.3]}
4. Qb3 {[%clk 0:02:58.4]} 4... dxc4 {[%clk 0:02:58.7]} 5. Qxc4 {[%clk
0:02:59.3]} 5... Bf5 {[%clk 0:02:59]} 6. g3 {[%clk 0:02:58.8]} 6... e6 {[%clk
0:02:58.6]} 7. Nc3 {[%clk 0:02:58.8]} 7... Nbd7 {[%clk 0:02:59.2]} 8. Bg2 {[%clk
0:02:58.7]} 8... Be7 {[%clk 0:02:59.7]} 9. Qb3 {[%clk 0:02:58.9]} 9... Qb6
{[%clk 0:02:58.9]} 10. Nd2 {[%clk 0:02:59.1]} 10... O-O {[%clk 0:02:58]} 11. Nc4
{[%clk 0:02:58.8]} 11... Qxb3 {[%clk 0:02:57.5]} 12. axb3 {[%clk 0:02:59.7]}
12... Nb6 {[%clk 0:02:49.1]} 13. Na5 {[%clk 0:02:59.2]} 13... Bc2 {[%clk
0:02:18.2]} 14. Nxb7 {[%clk 0:02:27.1]} 14... Bxb3 {[%clk 0:02:15.4]} 15. Bxc6
{[%clk 0:02:27.5]} 15... Rac8 {[%clk 0:02:06.8]} 16. Bg2 {[%clk 0:02:25.7]}
16... Nbd5 {[%clk 0:02:01.1]} 17. Nxd5 {[%clk 0:02:03.5]} 17... Bxd5 {[%clk
0:01:59.1]} 18. O-O {[%clk 0:02:04]} 18... Ra8 {[%clk 0:01:50.1]} 19. Na5 {[%clk
0:01:50.4]} 19... Rfc8 {[%clk 0:01:45.6]} 20. Rd1 {[%clk 0:01:24.6]} 20... Rab8
{[%clk 0:01:42.6]} 21. f3 {[%clk 0:01:12.3]} 21... Rc2 {[%clk 0:01:39.1]} 22. e4
{[%clk 0:01:11.5]} 22... Ba8 {[%clk 0:01:33.9]} 23. Bf1 {[%clk 0:01:10.7]} 23...
Bb4 {[%clk 0:01:24.3]} 24. Bd3 {[%clk 0:01:09.5]} 24... Rc7 {[%clk 0:01:22.4]}
25. Bf4 {[%clk 0:01:07.7]} 25... Rcc8 {[%clk 0:01:12.1]} 26. Bxb8 {[%clk
0:01:05.8]} 26... Rxb8 {[%clk 0:01:13]} 27. Nc4 {[%clk 0:01:05.5]} 27... g5
{[%clk 0:00:57.3]} 28. g4 {[%clk 0:00:58]} 28... h5 {[%clk 0:00:53.2]} 29. h3
{[%clk 0:00:57.8]} 29... Rb7 {[%clk 0:00:40.2]} 30. Rdc1 {[%clk 0:00:56]} 30...
Kg7 {[%clk 0:00:38.2]} 31. Kf2 {[%clk 0:00:54.7]} 31... Rd7 {[%clk 0:00:35.5]}
32. Ke3 {[%clk 0:00:53.8]} 32... Be7 {[%clk 0:00:35.3]} 33. Ne5 {[%clk
0:00:53.6]} 33... Rb7 {[%clk 0:00:34.7]} 34. Rc8 {[%clk 0:00:49.6]} 34... Rxb2
{[%clk 0:00:06.1]} 35. Rxa8 {[%clk 0:00:47.8]} 35... Bb4 {[%clk 0:00:05.8]} 36.
Nc4 {[%clk 0:00:43.3]} 36... Rh2 {[%clk 0:00:04.7]} 37. Bf1 {[%clk 0:00:40.7]}
37... hxg4 {[%clk 0:00:03.7]} 38. hxg4 {[%clk 0:00:41.6]} 1-0

[Event "*** Titled Tuesday Blitz"]
[Site "Chess.com"]
[Date "2020.05.12"]
[Round "2"]
[White "BhulseATX"]
[Black "Angel_Hranitel_37"]
[Result "0-1"]
[WhiteElo "1961"]
[BlackElo "2367"]
[TimeControl "180+1"]
[EndTime "10:17:55 PDT"]
[Termination "Angel_Hranitel_37 won by resignation"]

1. d4 {[%clk 0:03:00.9]} 1... Nf6 {[%clk 0:02:59.8]} 2. Nf3 {[%clk 0:02:59.6]}
2... g6 {[%clk 0:03:00]} 3. c4 {[%clk 0:02:58.6]} 3... Bg7 {[%clk 0:03:00.1]} 4.
g3 {[%clk 0:02:56]} 4... O-O {[%clk 0:03:00.1]} 5. Bg2 {[%clk 0:02:56.1]} 5...
d6 {[%clk 0:03:00.2]} 6. O-O {[%clk 0:02:55.9]} 6... Nc6 {[%clk 0:02:59.8]} 7.
Nc3 {[%clk 0:02:55.5]} 7... Bf5 {[%clk 0:02:59.8]} 8. Nh4 {[%clk 0:02:53.7]}
8... Bd7 {[%clk 0:02:59.2]} 9. e4 {[%clk 0:02:52.1]} 9... Qc8 {[%clk 0:02:58.2]}
10. Re1 {[%clk 0:02:49.6]} 10... e5 {[%clk 0:02:55]} 11. d5 {[%clk 0:02:44.2]}
11... Nd4 {[%clk 0:02:55.2]} 12. Be3 {[%clk 0:02:37]} 12... Re8 {[%clk
0:02:50.9]} 13. Ne2 {[%clk 0:02:13]} 13... Ng4 {[%clk 0:01:59.2]} 14. Nxd4
{[%clk 0:02:01.1]} 14... Nxe3 {[%clk 0:01:58.4]} 15. fxe3 {[%clk 0:02:00.5]}
15... exd4 {[%clk 0:01:58.9]} 16. exd4 {[%clk 0:02:00.5]} 16... c5 {[%clk
0:01:45.8]} 17. dxc6 {[%clk 0:01:37.2]} 17... Qxc6 {[%clk 0:01:45.2]} 18. Qd3
{[%clk 0:01:33.4]} 18... Qb6 {[%clk 0:01:43.4]} 19. Nf3 {[%clk 0:01:23.9]} 19...
Bg4 {[%clk 0:01:42.7]} 20. Rad1 {[%clk 0:01:06.3]} 20... Bxf3 {[%clk 0:01:31.3]}
21. Bxf3 {[%clk 0:01:04.7]} 21... Qxb2 {[%clk 0:01:31.8]} 22. Kh1 {[%clk
0:00:51.5]} 22... Qxa2 {[%clk 0:01:28.3]} 23. Rf1 {[%clk 0:00:47]} 23... Rac8
{[%clk 0:01:25.2]} 24. Ra1 {[%clk 0:00:35.6]} 24... Qxc4 {[%clk 0:01:24.5]} 25.
Qxc4 {[%clk 0:00:35.6]} 25... Rxc4 {[%clk 0:01:25.4]} 26. Rxa7 {[%clk
0:00:35.6]} 26... Rb8 {[%clk 0:00:34.1]} 27. e5 {[%clk 0:00:35.1]} 27... Rxd4
{[%clk 0:00:31.7]} 28. exd6 {[%clk 0:00:30.2]} 28... Rxd6 {[%clk 0:00:32.6]} 29.
Rxb7 {[%clk 0:00:26.2]} 29... Rxb7 {[%clk 0:00:30.8]} 30. Bxb7 {[%clk
0:00:25.7]} 30... g5 {[%clk 0:00:30.7]} 31. Ba6 {[%clk 0:00:23.8]} 31... Be5
{[%clk 0:00:28.6]} 32. Bc4 {[%clk 0:00:22.5]} 32... Bf6 {[%clk 0:00:23.8]} 33.
Kg2 {[%clk 0:00:21.3]} 33... Kg7 {[%clk 0:00:24.3]} 34. Kf3 {[%clk 0:00:19.6]}
34... Rd7 {[%clk 0:00:24.7]} 35. Kg4 {[%clk 0:00:18.9]} 35... h6 {[%clk
0:00:25.1]} 36. h4 {[%clk 0:00:18.8]} 36... Rd4+ {[%clk 0:00:24.9]} 0-1

[Event "*** Titled Tuesday Blitz"]
[Site "Chess.com"]
[Date "2020.05.12"]
[Round "2"]
[White "Andreikka"]
[Black "BeanScreen"]
[Result "1-0"]
[WhiteElo "2937"]
[BlackElo "2566"]
[TimeControl "180+1"]
[EndTime "10:17:57 PDT"]
[Termination "Andreikka won by checkmate"]

1. c4 {[%clk 0:03:00.6]} 1... e5 {[%clk 0:02:49]} 2. Nc3 {[%clk 0:03:00.1]} 2...
Nf6 {[%clk 0:02:48.4]} 3. Nf3 {[%clk 0:02:59.7]} 3... Nc6 {[%clk 0:02:47.5]} 4.
e4 {[%clk 0:03:00.2]} 4... Bb4 {[%clk 0:02:46.6]} 5. d3 {[%clk 0:03:00.4]} 5...
O-O {[%clk 0:02:46.1]} 6. a3 {[%clk 0:02:59.5]} 6... Bxc3+ {[%clk 0:02:43.3]} 7.
bxc3 {[%clk 0:02:59.2]} 7... d6 {[%clk 0:02:44.2]} 8. g3 {[%clk 0:02:59.8]} 8...
Nd7 {[%clk 0:02:43.5]} 9. Bg2 {[%clk 0:03:00]} 9... Nc5 {[%clk 0:02:43.3]} 10.
Nh4 {[%clk 0:03:00.4]} 10... Ne7 {[%clk 0:02:40.7]} 11. Be3 {[%clk 0:02:55.3]}
11... b6 {[%clk 0:02:38.7]} 12. O-O {[%clk 0:02:53.7]} 12... Rb8 {[%clk
0:02:36.2]} 13. f4 {[%clk 0:02:14.4]} 13... exf4 {[%clk 0:02:27.6]} 14. Bxf4
{[%clk 0:02:13.7]} 14... f5 {[%clk 0:02:19.2]} 15. Bg5 {[%clk 0:01:19.5]} 15...
fxe4 {[%clk 0:02:09.8]} 16. d4 {[%clk 0:01:18.5]} 16... Ne6 {[%clk 0:02:06.8]}
17. Bxe7 {[%clk 0:00:58.9]} 17... Qxe7 {[%clk 0:02:07.7]} 18. Bxe4 {[%clk
0:00:59]} 18... Ng5 {[%clk 0:02:01.7]} 19. Bd5+ {[%clk 0:00:53.1]} 19... Be6
{[%clk 0:01:58.7]} 20. Nf5 {[%clk 0:00:49.9]} 20... Qd7 {[%clk 0:01:56.5]} 21.
Qh5 {[%clk 0:00:45.9]} 21... Bxd5 {[%clk 0:01:45.6]} 22. Qxg5 {[%clk 0:00:38.3]}
22... Bxc4 {[%clk 0:01:45]} 23. Rf4 {[%clk 0:00:38.7]} 23... Kh8 {[%clk
0:01:38.9]} 24. Re1 {[%clk 0:00:26.8]} 24... Rf7 {[%clk 0:01:38.4]} 25. Ne7
{[%clk 0:00:23.5]} 25... Rbf8 {[%clk 0:01:20.1]} 26. Rxf7 {[%clk 0:00:22.3]}
26... Rxf7 {[%clk 0:01:21]} 27. Qh4 {[%clk 0:00:19.9]} 27... h6 {[%clk
0:01:15.6]} 28. Ng6+ {[%clk 0:00:19.9]} 28... Kh7 {[%clk 0:01:07.8]} 29. Ne7
{[%clk 0:00:18.6]} 29... Rf6 {[%clk 0:00:59.1]} 30. Qe4+ {[%clk 0:00:17.6]}
30... Kh8 {[%clk 0:00:55.9]} 31. Qa8+ {[%clk 0:00:15.8]} 31... Kh7 {[%clk
0:00:54.8]} 32. d5 {[%clk 0:00:14.9]} 32... Rf1+ {[%clk 0:00:43.9]} 33. Kg2
{[%clk 0:00:15.2]} 33... h5 {[%clk 0:00:33.3]} 34. Qg8+ {[%clk 0:00:14.4]} 34...
Kh6 {[%clk 0:00:33.7]} 35. Qh8+ {[%clk 0:00:14.5]} 35... Kg5 {[%clk 0:00:33.7]}
36. Qxg7# {[%clk 0:00:14.7]} 1-0

[Event "*** Titled Tuesday Blitz"]
[Site "Chess.com"]
[Date "2020.05.12"]
[Round "2"]
[White "Flawless_Fighter"]
[Black "Spartakus1975"]
[Result "0-1"]
[WhiteElo "2477"]
[BlackElo "2712"]
[TimeControl "180+1"]
[EndTime "10:17:59 PDT"]
[Termination "Spartakus1975 won by checkmate"]

1. e4 {[%clk 0:03:00.9]} 1... e6 {[%clk 0:02:59]} 2. d4 {[%clk 0:03:00.7]} 2...
d5 {[%clk 0:02:58.3]} 3. Nc3 {[%clk 0:03:01]} 3... Nf6 {[%clk 0:02:55.8]} 4. e5
{[%clk 0:03:01]} 4... Nfd7 {[%clk 0:02:55.3]} 5. f4 {[%clk 0:03:01.5]} 5... c5
{[%clk 0:02:55.8]} 6. Nf3 {[%clk 0:03:02.1]} 6... Nc6 {[%clk 0:02:56.4]} 7. Be3
{[%clk 0:03:02.7]} 7... Be7 {[%clk 0:02:57]} 8. Qd2 {[%clk 0:03:01.7]} 8... O-O
{[%clk 0:02:57.4]} 9. dxc5 {[%clk 0:02:58.5]} 9... Nxc5 {[%clk 0:02:48.3]} 10.
Qf2 {[%clk 0:02:53.8]} 10... Qa5 {[%clk 0:02:22.7]} 11. Bd2 {[%clk 0:02:23.3]}
11... Qb6 {[%clk 0:02:13.3]} 12. Rb1 {[%clk 0:02:08.5]} 12... f6 {[%clk
0:01:52.4]} 13. exf6 {[%clk 0:01:58.6]} 13... Bxf6 {[%clk 0:01:47.4]} 14. Bd3
{[%clk 0:01:44.9]} 14... Nxd3+ {[%clk 0:01:20.3]} 15. cxd3 {[%clk 0:01:43.9]}
15... Nd4 {[%clk 0:01:10.6]} 16. Nxd4 {[%clk 0:00:47.9]} 16... Bxd4 {[%clk
0:01:08.7]} 17. Qg3 {[%clk 0:00:34.7]} 17... e5 {[%clk 0:00:40.7]} 18. Ne2
{[%clk 0:00:28.1]} 18... exf4 {[%clk 0:00:33.4]} 19. Bxf4 {[%clk 0:00:25.4]}
19... Bf5 {[%clk 0:00:26.9]} 20. Kd2 {[%clk 0:00:08.9]} 20... Rae8 {[%clk
0:00:17.6]} 21. Nxd4 {[%clk 0:00:08.1]} 21... Qxd4 {[%clk 0:00:17]} 22. Rhe1
{[%clk 0:00:08.7]} 22... Bxd3 {[%clk 0:00:09.7]} 23. Be5 {[%clk 0:00:06.3]}
23... Rf2+ {[%clk 0:00:05]} 24. Kd1 {[%clk 0:00:02.9]} 24... Bc2+ {[%clk
0:00:03.7]} 25. Kc1 {[%clk 0:00:02.9]} 25... Qd2# {[%clk 0:00:03.7]} 0-1

[Event "*** Titled Tuesday Blitz"]
[Site "Chess.com"]
[Date "2020.05.12"]
[Round "2"]
[White "LiamVrolijk"]
[Black "FedaMaster"]
[Result "1-0"]
[WhiteElo "2813"]
[BlackElo "2525"]
[TimeControl "180+1"]
[EndTime "10:18:00 PDT"]
[Termination "LiamVrolijk won by checkmate"]

1. d4 {[%clk 0:03:00.9]} 1... Nf6 {[%clk 0:02:59.7]} 2. c4 {[%clk 0:02:57.9]}
2... c5 {[%clk 0:02:56.5]} 3. d5 {[%clk 0:02:57.5]} 3... b5 {[%clk 0:02:56.6]}
4. cxb5 {[%clk 0:02:53.1]} 4... a6 {[%clk 0:02:56.6]} 5. e3 {[%clk 0:02:50.3]}
5... e6 {[%clk 0:02:43.4]} 6. Nc3 {[%clk 0:02:43.9]} 6... Bb7 {[%clk 0:02:38.8]}
7. dxe6 {[%clk 0:02:40.9]} 7... fxe6 {[%clk 0:02:38.7]} 8. Nf3 {[%clk
0:02:40.5]} 8... Be7 {[%clk 0:02:33.3]} 9. bxa6 {[%clk 0:02:24.8]} 9... Nxa6
{[%clk 0:02:33.1]} 10. Be2 {[%clk 0:02:25.4]} 10... O-O {[%clk 0:02:32.8]} 11.
O-O {[%clk 0:02:25.9]} 11... d5 {[%clk 0:02:19.5]} 12. b3 {[%clk 0:02:20.6]}
12... Bd6 {[%clk 0:01:55.5]} 13. Bb2 {[%clk 0:01:48.8]} 13... Bb8 {[%clk
0:00:43.9]} 14. Re1 {[%clk 0:01:29]} 14... Nb4 {[%clk 0:00:35.2]} 15. e4 {[%clk
0:01:04.1]} 15... d4 {[%clk 0:00:14.4]} 16. Na4 {[%clk 0:01:04.3]} 16... Nxe4
{[%clk 0:00:13.3]} 17. Bc4 {[%clk 0:00:35.8]} 17... Nxf2 {[%clk 0:00:11.7]} 18.
Rxe6 {[%clk 0:00:10.9]} 18... Nh3+ {[%clk 0:00:09]} 19. Kf1 {[%clk 0:00:08.2]}
19... Kh8 {[%clk 0:00:08.9]} 20. Nxc5 {[%clk 0:00:04.9]} 20... Bxf3 {[%clk
0:00:08]} 21. gxf3 {[%clk 0:00:05.8]} 21... Ng5 {[%clk 0:00:08.4]} 22. Kg2
{[%clk 0:00:03.8]} 22... Qc7 {[%clk 0:00:07.9]} 23. Qg1 {[%clk 0:00:02.9]} 23...
Qxc5 {[%clk 0:00:07.8]} 24. Ree1 {[%clk 0:00:02.4]} 24... Nxf3 {[%clk
0:00:07.8]} 25. Qf2 {[%clk 0:00:03]} 25... Qg5+ {[%clk 0:00:08]} 26. Kh1 {[%clk
0:00:03.2]} 26... Nxe1 {[%clk 0:00:08.5]} 27. Qxf8# {[%clk 0:00:03]} 1-0

[Event "*** Titled Tuesday Blitz"]
[Site "Chess.com"]
[Date "2020.05.12"]
[Round "2"]
[White "Aygehovit1992"]
[Black "petrkostenko"]
[Result "1-0"]
[WhiteElo "2702"]
[BlackElo "2472"]
[TimeControl "180+1"]
[EndTime "10:18:00 PDT"]
[Termination "Aygehovit1992 won on time"]

1. e4 {[%clk 0:03:00.9]} 1... e6 {[%clk 0:02:58.2]} 2. d4 {[%clk 0:03:00.6]}
2... d5 {[%clk 0:02:58.6]} 3. Nc3 {[%clk 0:03:01.3]} 3... Bb4 {[%clk 0:02:55]}
4. e5 {[%clk 0:03:00.3]} 4... c5 {[%clk 0:02:54.1]} 5. a3 {[%clk 0:03:00.5]}
5... Bxc3+ {[%clk 0:02:54.1]} 6. bxc3 {[%clk 0:03:01.4]} 6... Nc6 {[%clk
0:02:54.4]} 7. Qg4 {[%clk 0:03:00.3]} 7... g6 {[%clk 0:02:54.3]} 8. Nf3 {[%clk
0:02:56.4]} 8... Qa5 {[%clk 0:02:51.7]} 9. Bd2 {[%clk 0:02:55]} 9... Qa4 {[%clk
0:02:51.6]} 10. Qf4 {[%clk 0:02:40.2]} 10... c4 {[%clk 0:02:11.8]} 11. Be2
{[%clk 0:02:28.2]} 11... h6 {[%clk 0:02:11]} 12. h4 {[%clk 0:02:26.5]} 12... Bd7
{[%clk 0:02:11.1]} 13. O-O {[%clk 0:02:14.7]} 13... Qxc2 {[%clk 0:01:44.4]} 14.
Rfc1 {[%clk 0:02:07.2]} 14... Qa4 {[%clk 0:01:34.8]} 15. Bd1 {[%clk 0:01:49.6]}
15... Qa6 {[%clk 0:01:34.6]} 16. Rab1 {[%clk 0:01:31]} 16... Na5 {[%clk
0:01:20.2]} 17. Nh2 {[%clk 0:01:30.5]} 17... Rh7 {[%clk 0:01:19.9]} 18. h5
{[%clk 0:01:17.3]} 18... g5 {[%clk 0:01:17.9]} 19. Qf3 {[%clk 0:01:15.3]} 19...
Nb3 {[%clk 0:01:14.1]} 20. Bxb3 {[%clk 0:01:14.6]} 20... cxb3 {[%clk 0:01:13.6]}
21. Rxb3 {[%clk 0:01:15.2]} 21... b6 {[%clk 0:01:04.9]} 22. Ng4 {[%clk
0:01:14.4]} 22... Bb5 {[%clk 0:00:55.6]} 23. Rxb5 {[%clk 0:00:55.8]} 23... Qxb5
{[%clk 0:00:54.7]} 24. c4 {[%clk 0:00:56.2]} 24... Qb2 {[%clk 0:00:45.4]} 25.
Qd3 {[%clk 0:00:42.3]} 25... Rg7 {[%clk 0:00:34.1]} 26. cxd5 {[%clk 0:00:42.2]}
26... exd5 {[%clk 0:00:14.2]} 27. Rc2 {[%clk 0:00:41]} 27... Qb1+ {[%clk
0:00:13]} 28. Kh2 {[%clk 0:00:40.9]} 28... Rd8 {[%clk 0:00:13.5]} 29. Nf6+
{[%clk 0:00:31.9]} 29... Nxf6 {[%clk 0:00:13.4]} 30. exf6 {[%clk 0:00:31.8]}
30... Rg8 {[%clk 0:00:14]} 31. Qh7 {[%clk 0:00:26.4]} 31... Rf8 {[%clk
0:00:06.4]} 32. Bb4 {[%clk 0:00:25.8]} 32... Qe1 {[%clk 0:00:01.4]} 33. Bxe1
{[%clk 0:00:24.9]} 1-0

[Event "*** Titled Tuesday Blitz"]
[Site "Chess.com"]
[Date "2020.05.12"]
[Round "2"]
[White "kismet6"]
[Black "BrianEscalante"]
[Result "0-1"]
[WhiteElo "1915"]
[BlackElo "2466"]
[TimeControl "180+1"]
[EndTime "10:18:03 PDT"]
[Termination "BrianEscalante won by resignation"]

1. e4 {[%clk 0:03:00.7]} 1... e5 {[%clk 0:02:49.2]} 2. Nf3 {[%clk 0:02:58.4]}
2... Nc6 {[%clk 0:02:46.9]} 3. Bc4 {[%clk 0:02:57.1]} 3... Bc5 {[%clk
0:02:44.9]} 4. c3 {[%clk 0:02:55.9]} 4... Nf6 {[%clk 0:02:44.7]} 5. d4 {[%clk
0:02:55.1]} 5... exd4 {[%clk 0:02:45.2]} 6. cxd4 {[%clk 0:02:55.1]} 6... Bb4+
{[%clk 0:02:45.8]} 7. Bd2 {[%clk 0:02:55.2]} 7... Nxe4 {[%clk 0:02:41.9]} 8.
Bxb4 {[%clk 0:02:54.4]} 8... Nxb4 {[%clk 0:02:42.8]} 9. Bxf7+ {[%clk 0:02:54.5]}
9... Kxf7 {[%clk 0:02:43]} 10. Qb3+ {[%clk 0:02:54.3]} 10... Kf8 {[%clk
0:02:42.3]} 11. Qxb4+ {[%clk 0:02:53.7]} 11... Qe7 {[%clk 0:02:43]} 12. Qxe7+
{[%clk 0:02:50.4]} 12... Kxe7 {[%clk 0:02:43.9]} 13. O-O {[%clk 0:02:47.7]}
13... Nf6 {[%clk 0:02:44.5]} 14. Re1+ {[%clk 0:02:47.2]} 14... Kd8 {[%clk
0:02:43.8]} 15. Ne5 {[%clk 0:02:44.2]} 15... Rf8 {[%clk 0:02:42.6]} 16. Nc3
{[%clk 0:02:42]} 16... d6 {[%clk 0:02:42.7]} 17. Nc4 {[%clk 0:02:38.3]} 17...
Re8 {[%clk 0:01:50.1]} 18. Rxe8+ {[%clk 0:02:29]} 18... Kxe8 {[%clk 0:01:51]}
19. Re1+ {[%clk 0:02:28.8]} 19... Kd8 {[%clk 0:01:51.2]} 20. f3 {[%clk
0:02:26.6]} 20... Bf5 {[%clk 0:01:43.5]} 21. Kf2 {[%clk 0:02:23.3]} 21... Kd7
{[%clk 0:01:43.1]} 22. Ne3 {[%clk 0:02:22.8]} 22... Bg6 {[%clk 0:01:39.9]} 23.
Ned5 {[%clk 0:02:15.8]} 23... Nxd5 {[%clk 0:01:39.5]} 24. Nxd5 {[%clk
0:02:15.7]} 24... Re8 {[%clk 0:01:39.4]} 25. Rxe8 {[%clk 0:02:11.9]} 25... Bxe8
{[%clk 0:01:40.3]} 26. Ke3 {[%clk 0:02:09.7]} 26... Bf7 {[%clk 0:01:39.4]} 27.
Nc3 {[%clk 0:02:09.5]} 27... c5 {[%clk 0:01:36]} 28. d5 {[%clk 0:02:09.2]} 28...
a6 {[%clk 0:01:31.2]} 29. f4 {[%clk 0:02:06.5]} 29... b5 {[%clk 0:01:26.2]} 30.
Ke4 {[%clk 0:02:06]} 30... b4 {[%clk 0:01:19]} 31. Nd1 {[%clk 0:01:54.2]} 31...
Bg6+ {[%clk 0:00:42]} 32. f5 {[%clk 0:01:53.9]} 32... Bh5 {[%clk 0:00:42.3]} 33.
Ne3 {[%clk 0:01:53.8]} 33... Be2 {[%clk 0:00:42.8]} 34. b3 {[%clk 0:01:52]}
34... Ke7 {[%clk 0:00:40.7]} 35. g4 {[%clk 0:01:49.9]} 35... h6 {[%clk
0:00:40.5]} 36. h4 {[%clk 0:01:49]} 36... a5 {[%clk 0:00:39.2]} 37. g5 {[%clk
0:01:43.5]} 37... hxg5 {[%clk 0:00:40.1]} 38. hxg5 {[%clk 0:01:42.9]} 38... Bb5
{[%clk 0:00:35.6]} 39. Ng4 {[%clk 0:01:31.5]} 39... c4 {[%clk 0:00:32.1]} 40.
bxc4 {[%clk 0:01:28.9]} 40... Bxc4 {[%clk 0:00:33]} 41. f6+ {[%clk 0:00:53.3]}
41... Kf7 {[%clk 0:00:32.2]} 42. Kf5 {[%clk 0:00:47.4]} 42... g6+ {[%clk
0:00:28]} 43. Ke4 {[%clk 0:00:45.6]} 43... Bxa2 {[%clk 0:00:28]} 44. Nh6+ {[%clk
0:00:45.4]} 44... Kf8 {[%clk 0:00:28]} 45. Nf5 {[%clk 0:00:44.2]} 45... Bb1+
{[%clk 0:00:21.8]} 0-1

[Event "*** Titled Tuesday Blitz"]
[Site "Chess.com"]
[Date "2020.05.12"]
[Round "2"]
[White "chessablanca"]
[Black "BabyFacedAssasin"]
[Result "1-0"]
[WhiteElo "2467"]
[BlackElo "2254"]
[TimeControl "180+1"]
[EndTime "10:18:06 PDT"]
[Termination "chessablanca won by checkmate"]

1. g3 {[%clk 0:03:00.9]} 1... e5 {[%clk 0:02:57.6]} 2. Bg2 {[%clk 0:03:01]} 2...
d5 {[%clk 0:02:57.7]} 3. c4 {[%clk 0:03:00.4]} 3... c6 {[%clk 0:02:57.2]} 4. b3
{[%clk 0:02:57.9]} 4... Nf6 {[%clk 0:02:55.7]} 5. Bb2 {[%clk 0:02:57.9]} 5...
Bd6 {[%clk 0:02:56.2]} 6. e3 {[%clk 0:02:55]} 6... O-O {[%clk 0:02:55.4]} 7. Ne2
{[%clk 0:02:55.2]} 7... Bf5 {[%clk 0:02:51.3]} 8. Nbc3 {[%clk 0:02:52]} 8... e4
{[%clk 0:02:43.3]} 9. O-O {[%clk 0:02:48.3]} 9... Qd7 {[%clk 0:02:34.5]} 10. Na4
{[%clk 0:02:01.8]} 10... Bh3 {[%clk 0:02:21.1]} 11. Bxf6 {[%clk 0:01:57.1]}
11... Bxg2 {[%clk 0:02:20.4]} 12. Kxg2 {[%clk 0:01:55.1]} 12... gxf6 {[%clk
0:02:18.2]} 13. Nac3 {[%clk 0:01:53]} 13... Qe6 {[%clk 0:01:59.1]} 14. Nd4
{[%clk 0:01:43.3]} 14... Qe5 {[%clk 0:01:52.1]} 15. cxd5 {[%clk 0:01:41.1]}
15... cxd5 {[%clk 0:01:51.8]} 16. f4 {[%clk 0:01:41.2]} 16... exf3+ {[%clk
0:01:42.9]} 17. Rxf3 {[%clk 0:01:28.8]} 17... Nc6 {[%clk 0:01:37.4]} 18. Rf5
{[%clk 0:01:23.4]} 18... Qe8 {[%clk 0:01:01]} 19. Qg4+ {[%clk 0:00:54.6]} 19...
Kh8 {[%clk 0:01:00]} 20. Qh4 {[%clk 0:00:53.9]} 20... Be5 {[%clk 0:00:40.9]} 21.
Rh5 {[%clk 0:00:48.3]} 21... f5 {[%clk 0:00:33]} 22. Rxh7+ {[%clk 0:00:32.7]}
22... Kg8 {[%clk 0:00:32.7]} 23. Rh5 {[%clk 0:00:23.4]} 23... Nxd4 {[%clk
0:00:23]} 24. exd4 {[%clk 0:00:21.9]} 24... Bg7 {[%clk 0:00:20.9]} 25. g4 {[%clk
0:00:18.5]} 25... Rc8 {[%clk 0:00:20.4]} 26. Re1 {[%clk 0:00:17.6]} 26... Qd8
{[%clk 0:00:14.6]} 27. Qxd8 {[%clk 0:00:17]} 27... Rcxd8 {[%clk 0:00:14.4]} 28.
Rxf5 {[%clk 0:00:17.3]} 28... Bxd4 {[%clk 0:00:11]} 29. Nxd5 {[%clk 0:00:17.3]}
29... Bg7 {[%clk 0:00:09.8]} 30. Ne7+ {[%clk 0:00:16.5]} 30... Kh7 {[%clk
0:00:09.6]} 31. Rh5+ {[%clk 0:00:16.7]} 31... Bh6 {[%clk 0:00:09.8]} 32. g5
{[%clk 0:00:17]} 32... Rg8 {[%clk 0:00:05.7]} 33. Rxh6+ {[%clk 0:00:16.6]} 33...
Kg7 {[%clk 0:00:05.3]} 34. Nf5+ {[%clk 0:00:16.9]} 34... Kf8 {[%clk 0:00:04.9]}
35. h4 {[%clk 0:00:17.3]} 35... Rxd2+ {[%clk 0:00:03.9]} 36. Kf3 {[%clk
0:00:17.7]} 36... Rxa2 {[%clk 0:00:04.4]} 37. Rd6 {[%clk 0:00:17.7]} 37... f6
{[%clk 0:00:01.2]} 38. Rxf6# {[%clk 0:00:17.3]} 1-0